{"text_format":"1","workbook":"xlsx","n_sheets":1,"sheets":["Пайдасыз бюджет"],"not_rendered":{"charts":2,"images":1,"macros":0,"external_links":0,"defined_names":1,"comments":0,"pivot_tables":0},"unopened":[],"bounds":{"document_bytes":16777216,"sheet_cells":100000,"rows_first":2000,"rows_last":500,"rows_between":2000,"halvings":0,"cell_chars":16384,"cell_head_chars":4096},"cells_cut":0,"cells_raw":0,"read":"whole","date_system":"1900"}

{"sheet":"Пайдасыз бюджет","index":0,"n_rows":40,"n_cols":7,"rows_kept":40,"cut":false,"hidden":false,"merged":[[21,1,21,5],[16,1,16,6]]}
[null,"Пайдасыз бюджет",null,null,null,"ҚАРЖЫЛЫҚ ЖЫЛ",2012]
[]
[]
[]
[]
[]
[]
[]
[null,null,{"$f":"CONCATENATE(\"FY \",FY-1)","v":"FY 2011"},{"$f":"CONCATENATE(\"FY \",FY)","v":"FY 2012"},{"$f":"CONCATENATE(\"FY \",FY)","v":"FY 2012"},{"$f":"CONCATENATE(\"FY \",FY)","v":"FY 2012"},{"$f":"CONCATENATE(\"FY \",FY)","v":"FY 2012"}]
[null,"ТАБЫС","ӨТКЕН ЖЫЛ","ҰСЫНЫС","НАҚТЫ","АЙЫРМАШЫЛЫҚ","+/- ӨТКЕН ЖЫЛ"]
[null,"Қор жинаушы және іс-шаралар",150000,200000,180000,{"$f":"ТабысКестесі[[#This Row],[НАҚТЫ]]-ТабысКестесі[[#This Row],[ҰСЫНЫС]]","v":-20000},{"$f":"ТабысКестесі[[#This Row],[НАҚТЫ]]-ТабысКестесі[[#This Row],[ӨТКЕН ЖЫЛ]]","v":30000}]
[null,"Қор",50000,50000,50000,{"$f":"ТабысКестесі[[#This Row],[НАҚТЫ]]-ТабысКестесі[[#This Row],[ҰСЫНЫС]]","v":0},{"$f":"ТабысКестесі[[#This Row],[НАҚТЫ]]-ТабысКестесі[[#This Row],[ӨТКЕН ЖЫЛ]]","v":0}]
[null,"Жәрдем ақы",30000,40000,20000,{"$f":"ТабысКестесі[[#This Row],[НАҚТЫ]]-ТабысКестесі[[#This Row],[ҰСЫНЫС]]","v":-20000},{"$f":"ТабысКестесі[[#This Row],[НАҚТЫ]]-ТабысКестесі[[#This Row],[ӨТКЕН ЖЫЛ]]","v":-10000}]
[null,"Пайыздық кіріс",null,null,null,{"$f":"ТабысКестесі[[#This Row],[НАҚТЫ]]-ТабысКестесі[[#This Row],[ҰСЫНЫС]]","v":0},{"$f":"ТабысКестесі[[#This Row],[НАҚТЫ]]-ТабысКестесі[[#This Row],[ӨТКЕН ЖЫЛ]]","v":0}]
[null,"Ұсақ-түйек",null,null,null,{"$f":"ТабысКестесі[[#This Row],[НАҚТЫ]]-ТабысКестесі[[#This Row],[ҰСЫНЫС]]","v":0},{"$f":"ТабысКестесі[[#This Row],[НАҚТЫ]]-ТабысКестесі[[#This Row],[ӨТКЕН ЖЫЛ]]","v":0}]
[null,"ҚОРЫТЫНДЫ",{"$f":"SUBTOTAL(109,ТабысКестесі[ӨТКЕН ЖЫЛ])","v":230000},{"$f":"SUBTOTAL(109,ТабысКестесі[ҰСЫНЫС])","v":290000},{"$f":"SUBTOTAL(109,ТабысКестесі[НАҚТЫ])","v":250000},{"$f":"SUBTOTAL(109,ТабысКестесі[АЙЫРМАШЫЛЫҚ])","v":-40000},{"$f":"SUBTOTAL(105,ТабысКестесі[+/- ӨТКЕН ЖЫЛ])","v":-10000}]
[]
[]
[]
[]
[]
[]
[]
[]
[null,null,{"$f":"CONCATENATE(\"FY \",FY-1)","v":"FY 2011"},{"$f":"CONCATENATE(\"FY \",FY)","v":"FY 2012"},{"$f":"CONCATENATE(\"FY \",FY)","v":"FY 2012"},{"$f":"CONCATENATE(\"FY \",FY)","v":"FY 2012"},{"$f":"CONCATENATE(\"FY \",FY)","v":"FY 2012"}]
[null,"ШЫҒЫНДАР","ӨТКЕН ЖЫЛ","ҰСЫНЫС","НАҚТЫ","АЙЫРМАШЫЛЫҚ","+/- ӨТКЕН ЖЫЛ"]
[null,"Жалақы",15000,30000,30000,{"$f":"ШығынКестесі[[#This Row],[НАҚТЫ]]-ШығынКестесі[[#This Row],[ҰСЫНЫС]]","v":0},{"$f":"ШығынКестесі[[#This Row],[НАҚТЫ]]-ШығынКестесі[[#This Row],[ӨТКЕН ЖЫЛ]]","v":15000}]
[null,"Пайда",5000,7500,7800,{"$f":"ШығынКестесі[[#This Row],[НАҚТЫ]]-ШығынКестесі[[#This Row],[ҰСЫНЫС]]","v":300},{"$f":"ШығынКестесі[[#This Row],[НАҚТЫ]]-ШығынКестесі[[#This Row],[ӨТКЕН ЖЫЛ]]","v":2800}]
[null,"Жалдау",6000,6000,6000,{"$f":"ШығынКестесі[[#This Row],[НАҚТЫ]]-ШығынКестесі[[#This Row],[ҰСЫНЫС]]","v":0},{"$f":"ШығынКестесі[[#This Row],[НАҚТЫ]]-ШығынКестесі[[#This Row],[ӨТКЕН ЖЫЛ]]","v":0}]
[null,"Коммуналдық қызметтер",1000,1200,1150,{"$f":"ШығынКестесі[[#This Row],[НАҚТЫ]]-ШығынКестесі[[#This Row],[ҰСЫНЫС]]","v":-50},{"$f":"ШығынКестесі[[#This Row],[НАҚТЫ]]-ШығынКестесі[[#This Row],[ӨТКЕН ЖЫЛ]]","v":150}]
[null,"Саяхат және жиналыс",2500,2000,2800,{"$f":"ШығынКестесі[[#This Row],[НАҚТЫ]]-ШығынКестесі[[#This Row],[ҰСЫНЫС]]","v":800},{"$f":"ШығынКестесі[[#This Row],[НАҚТЫ]]-ШығынКестесі[[#This Row],[ӨТКЕН ЖЫЛ]]","v":300}]
[null,"Кәсібилік сыйақы",null,null,null,{"$f":"ШығынКестесі[[#This Row],[НАҚТЫ]]-ШығынКестесі[[#This Row],[ҰСЫНЫС]]","v":0},{"$f":"ШығынКестесі[[#This Row],[НАҚТЫ]]-ШығынКестесі[[#This Row],[ӨТКЕН ЖЫЛ]]","v":0}]
[null,"Маркетинг/жарнамалау",null,null,null,{"$f":"ШығынКестесі[[#This Row],[НАҚТЫ]]-ШығынКестесі[[#This Row],[ҰСЫНЫС]]","v":0},{"$f":"ШығынКестесі[[#This Row],[НАҚТЫ]]-ШығынКестесі[[#This Row],[ӨТКЕН ЖЫЛ]]","v":0}]
[null,"Сақтандыру",null,null,null,{"$f":"ШығынКестесі[[#This Row],[НАҚТЫ]]-ШығынКестесі[[#This Row],[ҰСЫНЫС]]","v":0},{"$f":"ШығынКестесі[[#This Row],[НАҚТЫ]]-ШығынКестесі[[#This Row],[ӨТКЕН ЖЫЛ]]","v":0}]
[null,"Телефон",null,null,null,{"$f":"ШығынКестесі[[#This Row],[НАҚТЫ]]-ШығынКестесі[[#This Row],[ҰСЫНЫС]]","v":0},{"$f":"ШығынКестесі[[#This Row],[НАҚТЫ]]-ШығынКестесі[[#This Row],[ӨТКЕН ЖЫЛ]]","v":0}]
[null,"Интернет төлемі (веб-сайт, жиналыс орны және т.б.)",null,null,null,{"$f":"ШығынКестесі[[#This Row],[НАҚТЫ]]-ШығынКестесі[[#This Row],[ҰСЫНЫС]]","v":0},{"$f":"ШығынКестесі[[#This Row],[НАҚТЫ]]-ШығынКестесі[[#This Row],[ӨТКЕН ЖЫЛ]]","v":0}]
[null,"Құрал",null,null,null,{"$f":"ШығынКестесі[[#This Row],[НАҚТЫ]]-ШығынКестесі[[#This Row],[ҰСЫНЫС]]","v":0},{"$f":"ШығынКестесі[[#This Row],[НАҚТЫ]]-ШығынКестесі[[#This Row],[ӨТКЕН ЖЫЛ]]","v":0}]
[null,"Керек-жарақтар",null,null,null,{"$f":"ШығынКестесі[[#This Row],[НАҚТЫ]]-ШығынКестесі[[#This Row],[ҰСЫНЫС]]","v":0},{"$f":"ШығынКестесі[[#This Row],[НАҚТЫ]]-ШығынКестесі[[#This Row],[ӨТКЕН ЖЫЛ]]","v":0}]
[null,"Пошталық төлем",null,null,null,{"$f":"ШығынКестесі[[#This Row],[НАҚТЫ]]-ШығынКестесі[[#This Row],[ҰСЫНЫС]]","v":0},{"$f":"ШығынКестесі[[#This Row],[НАҚТЫ]]-ШығынКестесі[[#This Row],[ӨТКЕН ЖЫЛ]]","v":0}]
[null,"ҚОРЫТЫНДЫ",{"$f":"SUBTOTAL(109,ШығынКестесі[ӨТКЕН ЖЫЛ])","v":29500},{"$f":"SUBTOTAL(109,ШығынКестесі[ҰСЫНЫС])","v":46700},{"$f":"SUBTOTAL(109,ШығынКестесі[НАҚТЫ])","v":47750},{"$f":"SUBTOTAL(109,ШығынКестесі[АЙЫРМАШЫЛЫҚ])","v":1050},{"$f":"SUBTOTAL(109,ШығынКестесі[+/- ӨТКЕН ЖЫЛ])","v":18250}]